Cogmind - Beta 11 X11 @@@ ROGUE MODE // 2022.03.07 @ 18:19:15 Player: LU-1G1 Result: Destroyed by D-53 Grenadier with Mini Grenade Launcher Performance ------------- Evolutions (0) 0 Regions Visited (4) 800 Robots Destroyed (27) 135 Value Destroyed (309) 309 Prototype IDs (0) 0 Alien Tech Used (0) 0 Bonus (0) 0 TOTAL SCORE: 1244 Bonus ------- None Cogmind --------- Core Integrity 0/250 Matter 215/300 Energy 86/100 System Corruption 5% Temperature Cool (87) Movement Core (700) Ox13 Location -9/Mines Parts ------- > --- POWER (1) -------- (None) > --- PROPULSION (2) --- (None) > --- UTILITY (2) ------ High-capacity Storage Unit > --- WEAPON (2) ------- Light Assault Rifle Light Assault Rifle > --- INVENTORY (20) --- Ion Engine Aluminum Leg Aluminum Leg Wheel Huge Storage Unit High-capacity Matter Pod (200) Structural Scanner Improved Terrain Scanner Seismic Detector Seismic Detector Seismic Detector EM Pulse Gun Medium Laser Medium Laser Small Laser Light Assault Rifle Light Assault Rifle Peak State ------------ > --- POWER ------------ Ion Engine > --- PROPULSION ------- Light Treads Light Treads > --- UTILITY ---------- Large Storage Unit Improved Terrain Scanner > --- WEAPON ----------- Medium Laser Assault Rifle > --- INVENTORY -------- Aluminum Leg Aluminum Leg Wheel Small Storage Unit Structural Scanner Seismic Detector Seismic Detector Seismic Detector EM Pulse Gun Grenade Launcher [Rating: 10] Favorites ----------- Power Ion Engine Engine Ion Engine Propulsion Light Treads Treads Light Treads Utility High-capacity Storage Unit Device Improved Terrain Scanner Storage High-capacity Storage Unit Protection Core Shielding Weapon Medium Laser Energy Gun Medium Laser Ballistic Gun Assault Rifle Launcher Grenade Launcher Build | -11 -10 -10 -10 -9 ------- Run | Scr Mat Min Exi Min Slots Evolved . | . . . . . Power . | . . . . . Propulsion . | . . . . . Utility . | . . . . . Weapon . | . . . . . Parts Attached 20 | 10 2 2 . 6 Power 2 | 1 . . . 1 Engine 2 | 1 . . . 1 Core . | . . . . . Reactor . | . . . . . Propulsion 2 | 2 . . . . Treads 2 | 2 . . . . Leg . | . . . . . Wheel . | . . . . . Hover . | . . . . . Flight . | . . . . . Utility 7 | 4 2 1 . . Device 3 | 3 . . . . Storage 3 | 1 2 . . . Processor . | . . . . . Hackware . | . . . . . Protection 1 | . . 1 . . Artifact . | . . . . . Weapon 9 | 3 . 1 . 5 Energy Gun 2 | 2 . . . . Energy Cannon . | . . . . . Ballistic Gun 5 | 1 . . . 4 Ballistic Cannon . | . . . . . Launcher 2 | . . 1 . 1 Special Weapon . | . . . . . Impact Weapon . | . . . . . Slashing Weapon . | . . . . . Piercing Weapon . | . . . . . Special Melee Weapon . | . . . . . Unidentified Prototypes . | . . . . . Parts Lost 7 | . . . . 7 Power 1 | . . . . 1 Propulsion 2 | . . . . 2 Utility 1 | . . . . 1 Weapon 3 | . . . . 3 Highest Loss Streak 7 | . . . . 7 To Critical Strikes . | . . . . . Average Slot Usage (%) 99 | . 100 99 100 89 Engine 13 | . 14 14 14 12 Treads 27 | . 28 28 28 24 Device 3 | . 14 1 . . Storage 14 | . 14 14 14 14 Protection 10 | . . 11 14 11 Energy Gun 14 | . 14 14 14 14 Ballistic Gun 8 | . 14 12 . 10 Launcher 5 | . . 1 14 . Naked Turns . | . . . . . Heaviest Build 51 | 15 50 51 51 50 Greatest Support 40 | 40 40 40 40 40 Greatest Overweight (x) 1 | . 1 1 1 1 Average Overweight (x) . | . . 1 1 1 Largest Inventory Capacity 20 | 8 20 20 20 20 Average Capacity 17 | 7 14 20 20 20 Most Carried 20 | 8 14 20 20 20 Average Carried 16 | 6 10 19 19 19 Final Capacity 20 | 8 20 20 20 20 Final Carried 20 | 8 14 20 19 17 Class Distribution -------------------- 100% | Mutant Dominant Class ---------------- Mutant | -10/Materials Mutant | -10/Mines Mutant | -10/Exiles Mutant | -9/Mines Resources | -11 -10 -10 -10 -9 ----------- Run | Scr Mat Min Exi Min Matter Collected 718 | 345 84 285 . 4 Remotely 62 | 62 . . . . Salvage Created 676 | 194 171 282 . 29 Parts 58 | 24 12 19 . 3 Haulers Intercepted . | . . . . . Recyclers Shooed 1 | . 1 . . . Parts Field Recycled . | . . . . . Retrieved Matter . | . . . . . Parts Self-Destructed . | . . . . . Prevented . | . . . . . Kills | -11 -10 -10 -10 -9 ------- Run | Scr Mat Min Exi Min Combat Hostiles Destroyed 17 | . 6 6 . 5 Guns 14 | . 6 6 . 2 AOE 3 | . . . . 3 Classes Destroyed 7 | 2 3 1 . 1 Worker 1 | . 1 . . . Builder 1 | . . 1 . . Tunneler 7 | 7 . . . . Recycler 2 | 1 . 1 . . Swarmer 13 | . 3 6 . 4 Grunt 3 | . 3 . . . Assembled 1 | . . . . 1 Best Kill Streak 5 | 3 5 4 . 3 Combat Bots Only 4 | . 4 3 . 3 Max Kills in Single Turn 2 | 1 2 2 . 2 Gunslinging 1 | . . 1 . . Exploded 2 | . . . . 2 Melee . | . . . . . Uniques/NPCs Destroyed . | . . . . . Combat | -11 -10 -10 -10 -9 -------- Run | Scr Mat Min Exi Min Damage Taken 1064 | . 133 250 . 681 Core 286 | . 17 33 . 236 Absorbed by Shields . | . . . . . Redirected to Shielding 23 | . . 6 . 17 Core Remaining (%) 100 | 100 . . . . Volleys Fired 83 | 24 18 20 . 21 Largest 2 | 2 2 2 . 2 Hottest 70 | 70 70 70 . 70 Shots Fired 137 | 29 36 39 . 33 Gun 133 | 29 36 38 . 30 Cannon . | . . . . . Launcher 4 | . . 1 . 3 Special . | . . . . . Kinetic 75 | 24 18 19 . 14 Thermal 56 | 3 18 19 . 16 Explosive 4 | . . 1 . 3 Electromagnetic 2 | 2 . . . . Robot Hit Streak 15 | 15 5 7 . 4 Robot Miss Streak 3 | 1 3 3 . 2 Penetration Max . | . . . . . Secondary Targets 3 | . 1 1 . 1 Max Gunslinging Chain 1 | . 1 1 . 1 Shots Hit Robots 85 | 26 18 22 . 19 Core Hits 40 | 9 11 11 . 9 Critical Kills . | . . . . . Critical Parts Destroyed . | . . . . . Critical Strikes 4 | . . 3 . 1 Burn 4 | . . 3 . 1 Melee Attacks . | . . . . . Impact . | . . . . . Slashing . | . . . . . Piercing . | . . . . . Sneak Attacks . | . . . . . Combat Hostiles . | . . . . . Follow-up Attacks . | . . . . . Damage Inflicted 1536 | 313 253 318 . 652 Guns 1052 | 313 253 266 . 220 Cannons . | . . . . . Explosions 432 | . . . . 432 Melee . | . . . . . Ramming 52 | . . 52 . . Kinetic 599 | 276 124 116 . 83 Thermal 440 | 24 129 150 . 137 Explosive 432 | . . . . 432 Electromagnetic 13 | 13 . . . . Impact . | . . . . . Slashing . | . . . . . Piercing . | . . . . . Highest Corruption 5 | . . . . 5 Average Corruption 4 | . . . . 4 Corruption Purged . | . . . . . Corruption Blocked . | . . . . . Overload Shots . | . . . . . Overflow Damage 37 | . . . . 37 Projectiles . | . . . . . Explosions 37 | . . . . 37 Melee . | . . . . . Knockbacks . | . . . . . Impact . | . . . . . Kinetic . | . . . . . Secondary . | . . . . . Self-Inflicted Damage 72 | . . . . 72 Shots 3 | . . . . 3 Rammed 7 | 2 . 5 . . Targets Rammed 8 | 2 . 6 . . Kicked . | . . . . . Crushed 1 | . . 1 . . Highest Temperature 157 | 18 96 45 . 157 Average Temperature 38 | 9 40 19 . 62 Received Heat Transfer 182 | . 42 . . 140 Siege Activations . | . . . . . Robots Corrupted . | . . . . . Combat Hostiles . | . . . . . Parts Fried . | . . . . . Impact Corruptions . | . . . . . Robots Melted . | . . . . . Combat Hostiles . | . . . . . Parts Melted 1 | . 1 . . . Heat Transferred 1591 | 74 370 666 . 481 Parts Sabotaged . | . . . . . Parts Stolen . | . . . . . Parts Stripped . | . . . . . Power Chain Reactions . | . . . . . Missiles Intercepted . | . . . . . Alert | -11 -10 -10 -10 -9 ------- Run | Scr Mat Min Exi Min Peak Influence 248 | 40 229 248 . 162 Initial 88 | . 26 88 . . Average 89 | 15 131 92 . 134 Maximum Alert Level 1 | . 1 1 . . Low Security (%) 88 | 100 58 93 . 100 Level 1 11 | . 41 6 . . Level 2 . | . . . . . Level 3 . | . . . . . Level 4 . | . . . . . Level 5 . | . . . . . High Security . | . . . . . Max Security . | . . . . . Squads Dispatched 2 | . 2 . . . Investigation . | . . . . . Extermination . | . . . . . Reinforcement 2 | . 2 . . . Assault . | . . . . . Garrison . | . . . . . Intercept . | . . . . . Searches Triggered . | . . . . . Construction Impeded . | . . . . . Haulers Reinforced . | . . . . . Active Scanning Responses . | . . . . . Cargo Convoy Interrupts . | . . . . . Stealth | -11 -10 -10 -10 -9 --------- Run | Scr Mat Min Exi Min Distress Signals 2 | . 2 . . . Communications Jammed . | . . . . . Distress Signals . | . . . . . Times Spotted 36 | . 9 6 . 21 Peak Tracking Total 11 | . 2 3 . 11 Tactical Retreats . | . . . . . Traps | -11 -10 -10 -10 -9 ------- Run | Scr Mat Min Exi Min Traps Triggered . | . . . . . Indirectly . | . . . . . Trap Hack Attempts . | . . . . . Triggered . | . . . . . Disarmed . | . . . . . Reprogrammed . | . . . . . Reused . | . . . . . Traps Extracted . | . . . . . Installed . | . . . . . Triggered . | . . . . . Machines | -11 -10 -10 -10 -9 ---------- Run | Scr Mat Min Exi Min Machines Disabled 1 | . . 1 . . Max in Single Turn 1 | . . 1 . . Machines Sabotaged . | . . . . . Garrisons Compromised . | . . . . . Overloaded Fab Kills . | . . . . . Hacking | -11 -10 -10 -10 -9 --------- Run | Scr Mat Min Exi Min Machines Accessed 1 | . . . 1 . Terminals . | . . . . . Fabricators . | . . . . . Repair Stations . | . . . . . Recycling Units . | . . . . . Scanalyzers . | . . . . . Garrison Access . | . . . . . Total Hacks 1 | . . . 1 . Successful 1 | . . . 1 . Failed . | . . . . . Catastrophic . | . . . . . Database Lockouts . | . . . . . Manual . | . . . . . Terminals . | . . . . . Fabricators . | . . . . . Repair Stations . | . . . . . Recycling Units . | . . . . . Scanalyzers . | . . . . . Garrison Access . | . . . . . Terminal Hacks 1 | . . . 1 . Record 1 | . . . 1 . Fabricator Hacks . | . . . . . Repair Station Hacks . | . . . . . Recycling Unit Hacks . | . . . . . Scanalyzer . | . . . . . Garrison Access Hacks . | . . . . . Unauthorized Hacks . | . . . . . Terminals . | . . . . . Fabricators . | . . . . . Repair Stations . | . . . . . Recycling Units . | . . . . . Scanalyzers . | . . . . . Garrison Access . | . . . . . Data Cores Recovered . | . . . . . Used . | . . . . . Hacking Detections . | . . . . . Full Trace Events . | . . . . . Feedback Events . | . . . . . Feedback Blocked . | . . . . . Robot Schematics Acquired . | . . . . . Robots Built . | . . . . . Authchips . | . . . . . Time . | . . . . . Total Robot Build Rating . | . . . . . Part Schematics Acquired . | . . . . . Parts Built . | . . . . . Authchips . | . . . . . Time . | . . . . . Total Part Build Rating . | . . . . . Parts Repaired . | . . . . . Time . | . . . . . Parts Recycled . | . . . . . Recycled Matter . | . . . . . Retrieved Matter . | . . . . . Retrieved Components . | . . . . . Parts Scanalyzed . | . . . . . Part Schematics Acquired . | . . . . . Parts Damaged . | . . . . . Bothacking | -11 -10 -10 -10 -9 ------------ Run | Scr Mat Min Exi Min Used RIF Installer . | . . . . . Robots Hacked . | . . . . . Non-combat . | . . . . . Combat . | . . . . . Robot Hacks Applied . | . . . . . Relay Couplers Released . | . . . . . Fabnet Peak Effective % . | . . . . . Robots Rewired . | . . . . . Allies Hacked . | . . . . . Hacks Repelled . | . . . . . Allies | -11 -10 -10 -10 -9 -------- Run | Scr Mat Min Exi Min Total Allies . | . . . . . Largest Group . | . . . . . Highest-Rated Group . | . . . . . Highest-Rated Ally . | . . . . . Total Orders . | . . . . . Ally Attacks . | . . . . . Total Damage . | . . . . . Kills . | . . . . . Allies Corrupted . | . . . . . Allies Melted . | . . . . . Intel | -11 -10 -10 -10 -9 ------- Run | Scr Mat Min Exi Min Robot Analysis Total . | . . . . . Derelict Logs Recovered 4 | . . 3 . 1 Drone Launches . | . . . . . Drone Recoveries . | . . . . . Exploration | -11 -10 -10 -10 -9 ------------- Run | Scr Mat Min Exi Min Turns Passed 2217 | 290 312 863 627 125 Spaces Moved 875 | 134 129 323 262 27 Core 7 | 7 . . . . Treads 868 | 127 129 323 262 27 Legs . | . . . . . Wheels . | . . . . . Hover . | . . . . . Flight . | . . . . . Fastest Speed 50 | 50 160 240 240 240 Average Speed 218 | 154 182 240 240 240 Slowest Speed 240 | 160 240 240 240 240 Overloaded Moves . | . . . . . Propulsion Burnouts . | . . . . . Robots Hopped . | . . . . . Cave-ins Triggered . | . . . . . Exploration Rate (%) 38 | 8 32 63 71 17 Regions Visited 4 Branch Regions 3 Pre-discovered Areas . | . . . . . Known Exits Taken . | . . . . . Unknown Exits Taken 4 | 1 1 1 1 . Scrap Searched 3 | . . 3 . . Spaces Dug 14 | . . 7 . 7 Terrain Destroyed 27 | . . 7 . 20 Melee . | . . . . . Projectile . | . . . . . AOE 27 | . . 7 . 20 Terrain Rammed . | . . . . . Walls Destroyed . | . . . . . Machines Disabled . | . . . . . Actions | -11 -10 -10 -10 -9 --------- Run | Scr Mat Min Exi Min Total 1039 | 185 171 367 262 54 Wait 20 | . 13 7 . . Move 871 | 133 128 322 261 27 Hop . | . . . . . Pick Up 25 | 11 7 7 . . Fast Attach 9 | 8 . 1 . . Attach 4 | 1 . . . 3 Detach 2 | 1 . 1 . . Swap 7 | 1 2 1 . 3 Drop 10 | 4 3 2 1 . Fire 83 | 24 18 20 . 21 Melee . | . . . . . Ram . | . . . . . Kick . | . . . . . Crush 8 | 2 . 6 . . Escape Stasis . | . . . . . Rewire . | . . . . . Trap . | . . . . . Miscellaneous . | . . . . . Route ------- -11/Scrapyard -10/Materials -10/Mines (discovered 2 exits: [*Mat] / *Exi) -10/Exiles -9/Mines History --------- Turn | Location | Event 30 | -11/Scrapyard | Discovered new exit (range 15) 291 | -11/Scrapyard | Entered Materials 311 | -10/Materials | Build established: Mutant 574 | -10/Materials | Discovered new exit (range 9) 603 | -10/Materials | Entered Mines 630 | -10/Mines | Learned Materials stockpile data 1131 | -10/Mines | Learned 2 Materials zone layouts 1184 | -10/Mines | Found a hidden stash of uninstalled traps 1263 | -10/Mines | Discovered new exit (range 8) 1271 | -10/Mines | Learned 4 Materials zone layouts 1457 | -10/Mines | Deemed a non-threat by the Exiles lab entrance 1457 | -10/Mines | Discovered new exit (range 5) 1466 | -10/Mines | Entered Exiles 1466 | -10/Exiles | Found Exiles lab abandoned 2072 | -10/Exiles | Discovered new exit (range 10) 2093 | -10/Exiles | Entered Mines 2165 | -9/Mines | Learned 8 Materials zone layouts 2166 | -9/Mines | Assembled infested the area 2171 | -9/Mines | Assisted by a Guerilla fighting off Assembled 2199 | -9/Mines | Core integrity fell below 50% 2205 | -9/Mines | Core integrity fell below 20% 2218 | -9/Mines | Destroyed by D-53 Grenadier with Mini Grenade Launcher Last Messages --------------- 02198_ Core Shielding destroyed. 02200_ as-64614 destroyed. 02200_ Lgt. Treads destroyed. 02200_ as-86907 destroyed. 02202_ Lgt. Ion Engine destroyed. 02202_ as-67639 destroyed. 02202_ D-53 Grenadier destroyed. 02205_ The unstable cave ceiling collapses. 02205_ as-31131 destroyed. 02205_ as-01654 destroyed. 02205_ K-01 Serf destroyed. 02205_ K-01 Serf collects debris. 02207_ as-69409 destroyed. 02209_ as-69088 destroyed. 02209_ K-01 Serf collects debris. 02211_ Med. Laser destroyed. 02214_ The unstable cave ceiling collapses. 02214_ as-04632 destroyed. 02216_ K-01 Serf collects debris. 02218_ The unstable cave ceiling collapses. Map ----- +----------------------------------------------------+ | ?????????????????????????????????????????????????? | | ?????????????????????????????????????????????????? | | ?????????????????????????????????????????????????? | | ?????????????????????????????????????????????????? | | ?????????????????????????????????????????????????? | | ?????????????????????????????????????????????????? | | ?????????????????????????????????????????????????? | | ?????????????????????????????????????????????????? | | ?????????????????????????????????????????????????? | | ?????????????????????????????????????????????????? | | ?????????????????????????????????????????????????? | | ?????????????????????????????????????????????????? | | ?####????????????????????????????????????????????? | | ?? ###????????????????????????? ??????????????? | | ??? ??????????????????????? k##????????????? | | ?????? ?########???????????? ????????????? | | ????????# ## ##?????????? #???????????? | | ????????# #?????????? ???????????? | | ????????# #????????? % ! ??????????? | | ????????# ##???????? = ??????????? | | ????????#### #####??### * ??????????? | | ???????????# * # ### ## ]%d ?????????? | | ????? ## # ## % ?????????? | | ????##########?# #### # ????????? | | ???????????????# #??# # ????????????? | | ????????######## #???# @ #??????????????????? | | ????????# #??# #??????????????????? | | ????????# ###### ##### #??????????????????? | | ???????????????# #?# ##??????????????????? | | ???????????????# ### ##?????????????????? | | ???????????????## ##????????????????? | | ????????????????# #???????????????? | | ????????????????#### #### #??????????????? | | ???????????????????# #??## #??????????????? | | ???????????????????# #???? ##??????????????? | | ??????????????????? ???? ##???????????????? | | ???????????????????"" ???? ##????????????????? | | ???????????????????"" ????# #?????????????????? | | ???????????????????"" ?????# #?????????????????? | | ??????????????????? ?????? #?????????????????? | | ??????????????????? ?????? #?????????????????? | | ?????????????????????##?????? #?????????????????? | | ????????????????????????????? #?????????????????? | | ??????????????????????????????? ?????????????????? | | ?????????????????????????????????????????????????? | | ?????????????????????????????????????????????????? | | ?????????????????????????????????????????????????? | | ?????????????????????????????????????????????????? | | ?????????????????????????????????????????????????? | | ?????????????????????????????????????????????????? | +----------------------------------------------------+ Best States ------------- Heat Dissipation 25 Energy Generation 10 Energy Capacity 250 Matter Stores 300 Matter Capacity 300 Sight Range 16 Terrain Scan Range 16 Terrain Scan Density 10 Core Shielding 20 Evasion (%) 50 Recoil Reduction 2 Item Schematics ----------------- None Robot Schematics ------------------ None Fabricated ------------ Nothing Alien Tech Used ----------------- None Achievements -------------- None Challenges ------------ None Game ------ Seed DeepMassDrive Manual? 0 Play Time 00:11:17 Cumulative 478.7 hours Start 2022.03.07 @ 18:05:36 End 2022.03.07 @ 18:19:15 Sessions 1 Manual Loads 0 Difficulty Rogue Special Mode None Game No. 472 Rogue 257 Adventurer 112 Explorer 103 Win Type - Total 31 Types 23/0/5/2/0/0/0/1/0 Lore% 85 Gallery% 89 Achievement% 80 Wizard Run 0 Options --------- ASCII 0 Keyboard 0 Movement Vi Keybinds 1 Fullscreen 2 Font 18/TerminusBold Map View 76x50 Tactical HUD 1 Map Filters NONE Filters NONE Steam 1 RUN: 2177ccdb-ae59-4987-90b8-a58ab6773b41